fUSD/lending_fUSD_20260622
["ID","MTS","AMOUNT","RATE_DAILY","PERIOD"]
[426004665,1782107431000,-250.0,0.00014114,2]
[426004667,1782107431000,-500.0,0.00014114,2]
[426004660,1782107431000,-200.0,0.00014114,2]
[426004731,1782107432000,-200.54,0.0001498,2]
[426004723,1782107432000,-682.98,0.00014899,2]
[426004721,1782107432000,-212.69,0.0001482,2]
[426004730,1782107432000,-166.66,0.00014929,2]
[426004722,1782107432000,-682.98,0.00014899,2]
[426004716,1782107432000,-746.61684557,0.00014724,2]
[426004713,1782107432000,-466.4366479,0.00014724,2]
[426004715,1782107432000,-940.3727728,0.00014724,2]
[426004714,1782107432000,-165.7159368,0.00014724,2]
[426004717,1782107432000,-441.39398643,0.00014724,2]
[426004720,1782107432000,-247.94,0.00014818,2]
[426004727,1782107432000,-200.0,0.000149,2]
[426004743,1782107432000,-321.0,0.00014999,2]
[426004728,1782107432000,-157.9873146,0.000149,2]
[426004725,1782107432000,-682.98,0.00014899,2]
[426004726,1782107432000,-682.98,0.00014899,2]
[426004724,1782107432000,-682.98,0.00014899,2]
[426004733,1782107432000,-309.0,0.00014987,2]
[426004732,1782107432000,-151.0,0.00014987,2]
[426004734,1782107432000,-317.0,0.00014987,2]
[426004736,1782107432000,-319.0,0.00014988,2]
[426004744,1782107432000,-319.0,0.00014999,2]
[426004740,1782107432000,-321.0,0.00014999,2]
[426004738,1782107432000,-317.0,0.0001499,2]
[426004735,1782107432000,-317.0,0.00014987,2]
[426004712,1782107432000,-13543.1261875,0.00014724,2]
[426004729,1782107432000,-157.46943484,0.000149,2]
[426004719,1782107432000,-682.98,0.00014772,2]
[426004698,1782107432000,-392.2092691,0.00014342,2]
[426004709,1782107432000,-314.0,0.00014656,2]
[426004741,1782107432000,-319.0,0.00014999,2]
[426004684,1782107432000,-300.0,0.00014206,2]
[426004686,1782107432000,-300.0,0.00014206,2]
[426004685,1782107432000,-300.0,0.00014206,2]
[426004687,1782107432000,-300.0,0.00014206,2]
[426004694,1782107432000,-220.23758205,0.00014342,2]
[426004690,1782107432000,-713.925272,0.00014285,2]
[426004691,1782107432000,-312.0,0.00014342,2]
[426004695,1782107432000,-513.5209049,0.00014342,2]
[426004688,1782107432000,-300.0,0.00014206,2]
[426004689,1782107432000,-250.0,0.00014206,2]
[426004693,1782107432000,-317.0,0.00014342,2]
[426004718,1782107432000,-1749.41185024,0.00014726,2]
[426004692,1782107432000,-309.0,0.00014342,2]
[426004697,1782107432000,-682.98,0.00014342,2]
[426004699,1782107432000,-150.0,0.00014343,7]
[426004700,1782107432000,-166.66,0.0001436,2]
[426004701,1782107432000,-504.22449488,0.00014388,2]
[426004702,1782107432000,-213.97,0.00014419,2]
[426004703,1782107432000,-150.0,0.00014425,2]
[426004708,1782107432000,-166.66,0.00014645,2]
[426004704,1782107432000,-222.84989282,0.00014557,7]
[426004707,1782107432000,-468.17,0.0001463,2]
[426004706,1782107432000,-255.0,0.00014618,2]
[426004705,1782107432000,-894.03,0.00014616,2]
[426004710,1782107432000,-312.0,0.00014656,2]
[426004696,1782107432000,-500.0,0.00014342,2]
[426004737,1782107432000,-318.0,0.00014988,2]
[426004711,1782107432000,-9378.1763184,0.00014724,2]
[426004739,1782107432000,-319.0,0.00014999,2]
[426004776,1782107432000,-828.77,0.00016116,2]
[426004775,1782107432000,-1000.0,0.00016063,2]
[426004773,1782107432000,-1720.62261392,0.00015904,2]
[426004777,1782107432000,-999.99,0.00016116,2]
[426004779,1782107432000,-15804.61,0.00016116,2]
[426004780,1782107432000,-213.97,0.00016221,2]
[426004781,1782107432000,-151.0,0.00016276,2]
[426004783,1782107432000,-316.0,0.000163,2]
[426004782,1782107432000,-151.0,0.00016276,2]
[426004784,1782107432000,-1000.0,0.00016308,2]
[426004785,1782107432000,-1829.0,0.00016379,5]
[426004786,1782107432000,-1399.0,0.00016416,5]
[426004787,1782107432000,-428.98485972,0.00016438,2]
[426004789,1782107432000,-216.0,0.00016438,2]
[426004788,1782107432000,-173.283087,0.00016438,2]
[426004790,1782107432000,-151.0,0.00016438,2]
[426004791,1782107432000,-151.0,0.00016438,2]
[426004792,1782107432000,-151.0,0.00016438,2]
[426004794,1782107432000,-13008.59590019,0.00016626,2]
[426004793,1782107432000,-1500.0,0.00016531,2]
[426004801,1782107432000,-200.0,0.0001713,2]
[426004795,1782107432000,-200.54,0.00016644,2]
[426004798,1782107432000,-249.58,0.00016695,2]
[426004796,1782107432000,-151.0,0.00016644,2]
[426004797,1782107432000,-250.0,0.00016674,2]
[426004799,1782107432000,-1555.5,0.00017079,2]
[426004802,1782107432000,-150.0,0.00017174,2]
[426004800,1782107432000,-151.0,0.00017099,2]
[426004772,1782107432000,-255.0,0.00015833,2]
[426004745,1782107432000,-316.0,0.00015,2]
[426004771,1782107432000,-500.0,0.00015633,2]
[426004778,1782107432000,-3119.65,0.00016116,2]
[426004742,1782107432000,-319.0,0.00014999,2]
[426004747,1782107432000,-314.0,0.00015,2]
[426004750,1782107432000,-317.0,0.00015,2]
[426004756,1782107432000,-285.05513885,0.00015035,2]
[426004751,1782107432000,-309.0,0.00015,2]
[426004749,1782107432000,-321.0,0.00015,2]
[426004757,1782107432000,-200.0,0.00015049,2]
[426004754,1782107432000,-3940.59526647,0.00015014,2]
[426004748,1782107432000,-317.0,0.00015,2]
[426004753,1782107432000,-657.88,0.00015009,2]
[426004752,1782107432000,-309.0,0.00015,2]
[426004755,1782107432000,-249.58,0.00015025,2]
[426004746,1782107432000,-320.0,0.00015,2]
[426004758,1782107432000,-13008.59590019,0.00015063,2]
[426004759,1782107432000,-8009.21368832,0.00015115,2]
[426004774,1782107432000,-300.0,0.00016,2]
[426004766,1782107432000,-934.0,0.00015445,2]
[426004769,1782107432000,-151.0,0.00015455,2]
[426004765,1782107432000,-1229.0,0.00015445,2]
[426004768,1782107432000,-151.0,0.00015455,2]
[426004770,1782107432000,-200.0,0.00015505,2]
[426004764,1782107432000,-1360.0,0.00015445,2]
[426004762,1782107432000,-3561.0,0.00015445,2]
[426004760,1782107432000,-200.0,0.00015199,2]
[426004763,1782107432000,-384.0,0.00015445,2]
[426004761,1782107432000,-200.0,0.00015351,2]
[426004767,1782107432000,-151.65,0.00015454,2]
[426004841,1782107433000,-1165.64580465,0.000181,2]
[426004839,1782107433000,-200.0,0.00018082,2]
[426004834,1782107433000,-420.0,0.0001805,2]
[426004832,1782107433000,-350.0,0.00018,2]
[426004833,1782107433000,-213.97,0.00018024,2]
[426004836,1782107433000,-268.0,0.0001805,2]
[426004830,1782107433000,-204.4,0.00018,2]
[426004831,1782107433000,-151.0,0.00018,2]
[426004837,1782107433000,-623.0,0.0001805,2]
[426004835,1782107433000,-174.0,0.0001805,2]
[426004842,1782107433000,-10157.09879137,0.000181,2]
[426004848,1782107433000,-300.0,0.000181,3]
[426004843,1782107433000,-151.0,0.000181,2]
[426004845,1782107433000,-300.0,0.000181,3]
[426004847,1782107433000,-300.0,0.000181,3]
[426004849,1782107433000,-1672.7364795,0.00018175,2]
[426004846,1782107433000,-300.0,0.000181,3]
[426004850,1782107433000,-13008.59590019,0.0001819,2]
[426004851,1782107433000,-919.629124,0.000182,2]
[426004853,1782107433000,-204.4,0.000182,2]
[426004854,1782107433000,-397.63637217,0.000182,2]
[426004852,1782107433000,-160.0338645,0.000182,2]
[426004838,1782107433000,-860.0,0.0001805,2]
[426004840,1782107433000,-1461.0,0.000181,5]
[426004829,1782107433000,-10157.09879137,0.00018,2]
[426004814,1782107433000,-6142.79623995,0.000176,2]
[426004827,1782107433000,-160.0338645,0.00018,2]
[426004803,1782107433000,-150.0,0.00017174,2]
[426004805,1782107433000,-164.06,0.00017182,2]
[426004804,1782107433000,-150.0,0.00017174,2]
[426004806,1782107433000,-219.986426,0.00017248,2]
[426004807,1782107433000,-537.16622831,0.00017256,7]
[426004809,1782107433000,-216.0,0.0001726,2]
[426004811,1782107433000,-283.576252,0.00017547,2]
[426004810,1782107433000,-320.0,0.00017474,2]
[426004813,1782107433000,-4014.30255142,0.000176,2]
[426004815,1782107433000,-151.0,0.000176,2]
[426004808,1782107433000,-449.44997712,0.00017256,7]
[426004828,1782107433000,-1165.64580465,0.00018,2]
[426004812,1782107433000,-1165.64580465,0.000176,2]
[426004816,1782107433000,-158.29196,0.000176,2]
[426004817,1782107433000,-1613.0535,0.00017627,2]
[426004819,1782107433000,-9999.99,0.00017728,2]
[426004818,1782107433000,-3564.15,0.00017728,2]
[426004822,1782107433000,-264.43608416,0.00017805,2]
[426004820,1782107433000,-1165.64580465,0.000178,2]
[426004821,1782107433000,-10157.09879137,0.000178,2]
[426004823,1782107433000,-2961.25738562,0.00017864,2]
[426004824,1782107433000,-10921.95164205,0.000179,2]
[426004826,1782107433000,-919.629124,0.00018,2]
[426004825,1782107433000,-151.0,0.00017919,2]
[426004860,1782107433000,-700.0,0.00018353,2]
[426004859,1782107433000,-200.54,0.00018308,2]
[426004844,1782107433000,-300.0,0.000181,3]
[426004857,1782107433000,-1165.64580465,0.000183,2]
[426004885,1782107433000,-1165.64580465,0.000189,2]
[426004890,1782107433000,-420.0,0.0001905,2]
[426004893,1782107433000,-623.0,0.0001905,2]
[426004888,1782107433000,-604.0,0.00019,2]
[426004889,1782107433000,-365.86093471,0.0001901,7]
[426004892,1782107433000,-268.0,0.0001905,2]
[426004891,1782107433000,-174.0,0.0001905,2]
[426004895,1782107433000,-1165.64580465,0.000191,2]
[426004896,1782107433000,-10157.09879137,0.000191,2]
[426004897,1782107433000,-629.84,0.00019152,2]
[426004898,1782107433000,-1125.00423533,0.00019178,2]
[426004902,1782107433000,-1798.80895522,0.00019271,2]
[426004901,1782107433000,-169.261806,0.00019178,2]
[426004903,1782107433000,-1165.64580465,0.000193,2]
[426004899,1782107433000,-151.0,0.00019178,2]
[426004906,1782107433000,-8703.09507623,0.000194,2]
[426004900,1782107433000,-151.0,0.00019178,2]
[426004904,1782107433000,-10157.09879137,0.000193,2]
[426004905,1782107433000,-818.91,0.000194,2]
[426004908,1782107433000,-433.38480779,0.000194,2]
[426004909,1782107433000,-720.61890735,0.000194,2]
[426004907,1782107433000,-300.0,0.000194,2]
[426004910,1782107433000,-227.265461,0.000194,2]
[426004911,1782107433000,-208.0,0.00019534,2]
[426004855,1782107433000,-151.49296208,0.00018229,2]
[426004894,1782107433000,-860.0,0.0001905,2]
[426004887,1782107433000,-10921.95164199,0.00018975,2]
[426004858,1782107433000,-10157.09879137,0.000183,2]
[426004884,1782107433000,-350.0,0.00018825,2]
[426004886,1782107433000,-10157.09879137,0.000189,2]
[426004856,1782107433000,-1939.75954783,0.00018264,2]
[426004861,1782107433000,-5969.75,0.00018356,2]
[426004863,1782107433000,-919.629124,0.000184,2]
[426004864,1782107433000,-160.0338645,0.000184,2]
[426004869,1782107433000,-1229.0,0.00018445,2]
[426004865,1782107433000,-204.4,0.000184,2]
[426004862,1782107433000,-249.58,0.00018364,2]
[426004871,1782107433000,-919.629124,0.000185,2]
[426004867,1782107433000,-383.0,0.00018445,2]
[426004866,1782107433000,-277.4,0.0001841,2]
[426004870,1782107433000,-934.0,0.00018445,2]
[426004868,1782107433000,-1360.0,0.00018445,2]
[426004872,1782107433000,-160.0338645,0.000185,2]
[426004875,1782107433000,-151.0,0.000185,2]
[426004873,1782107433000,-1165.64580465,0.000185,2]
[426004876,1782107433000,-682.98,0.00018533,2]
[426004879,1782107433000,-160.0338645,0.000187,2]
[426004881,1782107433000,-10157.09879137,0.000187,2]
[426004883,1782107433000,-151.0,0.00018797,2]
[426004877,1782107433000,-500.0,0.00018699,2]
[426004880,1782107433000,-1165.64580465,0.000187,2]
[426004874,1782107433000,-10157.09879137,0.000185,2]
[426004882,1782107433000,-1734.62772924,0.00018723,2]
[426004878,1782107433000,-919.629124,0.000187,2]
[426004912,1782107434000,-10157.09879137,0.000196,2]
[426004913,1782107434000,-151.0,0.000196,2]
[426004915,1782107434000,-2042.36270583,0.00019753,2]
[426004916,1782107434000,-5529.24488146,0.00019753,2]
[426004914,1782107434000,-1120.99,0.00019687,2]
[426004921,1782107437000,-932.10264588,0.0001975,2]
[426004920,1782107437000,-206.72586639,0.0001975,2]
[426004918,1782107437000,-223.834,0.00015445,2]
[426004919,1782107437000,-216.0,0.00018445,2]
[426004922,1782107437000,-800.93103555,0.0001975,2]
[426004924,1782107437000,-374.03591369,0.00019753,2]
[426004930,1782107437000,-800.0,0.000199,7]
[426004931,1782107437000,-682.98,0.00019949,2]
[426004932,1782107437000,-500.0,0.00019949,2]
[426004923,1782107437000,-1143.0,0.00019753,5]
[426004925,1782107437000,-5062.95239921,0.00019753,2]
[426004928,1782107437000,-213.97,0.00019826,2]
[426004927,1782107437000,-1865.36488656,0.00019819,2]
[426004929,1782107437000,-155.24312282,0.0001988,2]
[426004926,1782107437000,-10157.09879137,0.000198,2]
[426004933,1782107437000,-14356.92572432,0.0001995,15]
[426004934,1782107438000,-9271.13232103,0.0001995,15]
[426004939,1782107439000,-500.0,0.00019299,2]
[426004938,1782107439000,-500.0,0.00015444,2]
[426004940,1782107439000,-136.0,0.0001995,15]
[426004941,1782107439000,-3326.13441073,0.0001995,15]
[426004943,1782107439000,-825.29751821,0.0001995,15]
[426004944,1782107439000,-475.80353924,0.0001995,15]
[426004942,1782107439000,-14204.45234981,0.0001995,15]
[426004945,1782107440000,-1035.79762829,0.0001995,15]
[426004946,1782107440000,-35370.32145251,0.0001995,15]
[426004954,1782107442000,-341.04,0.0001995,15]
[426004956,1782107442000,-4267.8938124,0.0001995,15]
[426004957,1782107442000,-9017.55717712,0.0001995,15]
[426004958,1782107442000,-6877.85982336,0.0001995,15]
[426004955,1782107442000,-1812.51433939,0.00018,2]
[426004960,1782107443000,-2480.55064065,0.0001995,15]
[426004959,1782107443000,-542.0,0.0001995,15]
[426004983,1782107445000,-199.3,0.0002,5]
[426004982,1782107445000,-769.0,0.0002,2]
[426004980,1782107445000,-694.0,0.0002,2]
[426004984,1782107445000,-20000.0,0.0002,2]
[426004979,1782107445000,-1377.0,0.0002,2]
[426004977,1782107445000,-194.11719084,0.0002,2]
[426004976,1782107445000,-500.0,0.00019999,2]
[426004978,1782107445000,-4070.9072918,0.0002,2]
[426004974,1782107445000,-48588.6576909,0.0001995,15]
[426004972,1782107445000,-1812.51433939,0.000187,2]
[426004971,1782107445000,-1812.51433939,0.000185,2]
[426004969,1782107445000,-1476.62839696,0.000182,2]
[426004970,1782107445000,-1812.51433939,0.000184,2]
[426004968,1782107445000,-335.88594243,0.000182,2]
[426004975,1782107445000,-200.54,0.00019973,2]
[426004981,1782107445000,-828.0,0.0002,2]
[426004973,1782107445000,-2220.94303921,0.00019753,2]
[426004997,1782107445000,-169.0,0.0002,2]
[426004998,1782107445000,-174.0,0.0002,2]
[426004999,1782107445000,-400.0,0.0002,2]
[426005000,1782107445000,-2175.04647576,0.0002,2]
[426004995,1782107445000,-604.0,0.0002,2]
[426004992,1782107445000,-889.23362994,0.0002,2]
[426004993,1782107445000,-298.4,0.0002,2]
[426004994,1782107445000,-156.0,0.0002,2]
[426004985,1782107445000,-3022.37359993,0.0002,2]
[426004990,1782107445000,-150.0,0.0002,2]
[426004989,1782107445000,-299.99999901,0.0002,2]
[426004996,1782107445000,-150.0,0.0002,10]
[426004987,1782107445000,-5058.07814843,0.0002,2]
[426004988,1782107445000,-152.0,0.0002,2]
[426004986,1782107445000,-7160.71762211,0.0002,2]
[426004991,1782107445000,-8903.49722791,0.0002,2]
[426005017,1782107446000,-194.92,0.00020219,2]
[426005015,1782107446000,-150.0,0.00020174,2]
[426005007,1782107446000,-174.0,0.0002005,2]
[426005016,1782107446000,-889.23362994,0.000202,2]
[426005010,1782107446000,-860.0,0.0002005,2]
[426005009,1782107446000,-623.0,0.0002005,2]
[426005011,1782107446000,-150.0,0.000201,7]
[426005004,1782107446000,-249.58,0.00020034,2]
[426005006,1782107446000,-420.0,0.0002005,2]
[426005005,1782107446000,-10921.95164199,0.00020049,2]
[426005003,1782107446000,-157.0,0.0002,2]
[426005002,1782107446000,-1230.56352424,0.0002,2]
[426005001,1782107446000,-501.0,0.0002,2]
[426005012,1782107446000,-160.84205751,0.00020123,7]
[426005008,1782107446000,-268.0,0.0002005,2]
[426005013,1782107446000,-194.99652364,0.00020127,2]
[426005022,1782107446000,-889.23362994,0.000204,2]
[426005019,1782107446000,-1934.38338736,0.00020367,2]
[426005035,1782107446000,-5283.32996053,0.0002079,2]
[426005033,1782107446000,-1110.9295,0.0002079,2]
[426005034,1782107446000,-1151.30067516,0.0002079,2]
[426005028,1782107446000,-785.0,0.00020606,2]
[426005014,1782107446000,-150.0,0.00020174,2]
[426005031,1782107446000,-13784.50260767,0.000207,2]
[426005026,1782107446000,-7209.60046556,0.000205,2]
[426005032,1782107446000,-17642.41021855,0.0002079,2]
[426005030,1782107446000,-1659.05480749,0.000207,2]
[426005027,1782107446000,-889.23362994,0.000206,2]
[426005023,1782107446000,-42790.39953444,0.000205,2]
[426005020,1782107446000,-277.4,0.00020381,2]
[426005018,1782107446000,-1166.20857094,0.00020274,2]
[426005021,1782107446000,-994.0,0.00020391,7]
[426005029,1782107446000,-682.98,0.00020699,2]
[426005036,1782107454000,500.0,0.00027397,120]
[426005059,1782108171000,-151.0,0.00013249,2]
[426005055,1782108171000,-166.66,0.00013184,2]
[426005054,1782108171000,-166.66,0.00012912,2]
[426005056,1782108171000,-150.0,0.00013218,2]
[426005058,1782108171000,-151.0,0.00013249,2]
[426005060,1782108171000,-151.0,0.00013249,2]
[426005057,1782108171000,-150.0,0.00013249,2]
[426005061,1782108171000,-151.0,0.00013249,2]
[426005062,1782108171000,-151.0,0.00013249,2]
[426005064,1782108171000,-153.0,0.0001325,2]
[426005067,1782108171000,-150.0,0.0001325,2]
[426005068,1782108171000,-150.0,0.0001325,2]
[426005065,1782108171000,-152.0,0.0001325,2]
[426005066,1782108171000,-151.0,0.0001325,2]
[426005063,1782108171000,-150.0,0.00013249,2]
[426005089,1782108172000,-150.0,0.00013463,2]
[426005085,1782108172000,-163.79,0.00013401,2]
[426005081,1782108172000,-151.0,0.0001325,2]
[426005082,1782108172000,-150.0,0.0001325,2]
[426005084,1782108172000,-150.0,0.00013331,2]
[426005083,1782108172000,-153.0,0.0001325,2]
[426005080,1782108172000,-153.0,0.0001325,2]
[426005079,1782108172000,-152.0,0.0001325,2]
[426005076,1782108172000,-153.0,0.0001325,2]
[426005078,1782108172000,-153.0,0.0001325,2]
[426005075,1782108172000,-151.0,0.0001325,2]
[426005086,1782108172000,-285.05513885,0.00013402,2]
[426005074,1782108172000,-151.0,0.0001325,2]
[426005073,1782108172000,-151.0,0.0001325,2]
[426005072,1782108172000,-150.0,0.0001325,2]
[426005071,1782108172000,-151.0,0.0001325,2]
[426005070,1782108172000,-152.0,0.0001325,2]
[426005069,1782108172000,-205.93227683,0.0001325,2]
[426005077,1782108172000,-152.0,0.0001325,2]
[426005088,1782108172000,-166.66,0.00013456,2]
[426005087,1782108172000,-160.0,0.00013402,2]
[426005091,1782108172000,-166.66,0.00013727,2]
[426005109,1782108172000,-1192787.4039,0.00014142,2]
[426005111,1782108172000,-250.0,0.00014203,2]
[426005090,1782108172000,-254.0,0.00013595,2]
[426005108,1782108172000,-500.0,0.00014141,2]
[426005107,1782108172000,-500.0,0.00014141,2]
[426005106,1782108172000,-500.0,0.00014141,2]
[426005104,1782108172000,-500.0,0.00014141,2]
[426005105,1782108172000,-500.0,0.00014141,2]
[426005103,1782108172000,-554.8863756,0.00014141,2]
[426005100,1782108172000,-11484.53891158,0.00014084,2]
[426005110,1782108172000,-408.05059528,0.00014168,2]
[426005099,1782108172000,-703.16896758,0.00014084,2]
[426005101,1782108172000,-8993.41262832,0.00014084,2]
[426005097,1782108172000,-7645.36614942,0.00014084,2]
[426005096,1782108172000,-7053.39125285,0.00014076,2]
[426005098,1782108172000,-1929.0696609,0.00014084,2]
[426005095,1782108172000,-166.66,0.00013999,2]
[426005092,1782108172000,-180.81,0.00013811,2]
[426005094,1782108172000,-217.07,0.00013923,2]
[426005093,1782108172000,-200.0,0.00013923,2]
[426005102,1782108172000,-500.0,0.00014141,2]
[426005124,1782108173000,-166.66,0.00014271,2]
[426005123,1782108173000,-296.21,0.00014268,2]
[426005121,1782108173000,-270573.5875,0.00014242,2]
[426005122,1782108173000,-1584.20947865,0.00014263,2]
[426005119,1782108173000,-300.0,0.00014203,2]
[426005118,1782108173000,-300.0,0.00014203,2]
[426005126,1782108173000,-223.089147,0.00014285,2]
[426005116,1782108173000,-600.0,0.00014203,2]
[426005117,1782108173000,-600.0,0.00014203,2]
[426005115,1782108173000,-600.0,0.00014203,2]
[426005113,1782108173000,-600.0,0.00014203,2]
[426005114,1782108173000,-600.0,0.00014203,2]
[426005112,1782108173000,-225.73458877,0.00014203,2]
[426005120,1782108173000,-500.0,0.00014241,2]
[426005125,1782108173000,-178.471318,0.00014285,2]
[426005137,1782108173000,-300.0,0.00014574,2]
[426005129,1782108173000,-500.0,0.000143,2]
[426005128,1782108173000,-212.22449218,0.000143,2]
[426005142,1782108173000,-327150.47717492,0.00015,2]
[426005141,1782108173000,-265505.88616713,0.00015,2]
[426005139,1782108173000,-500.0,0.00014999,2]
[426005138,1782108173000,-1000.0,0.00014634,2]
[426005135,1782108173000,-300.0,0.00014574,2]
[426005140,1782108173000,-500.0,0.00014999,2]
[426005132,1782108173000,-500.0,0.00014342,2]
[426005133,1782108173000,-255.0,0.00014362,2]
[426005134,1782108173000,-180.81,0.00014501,2]
[426005130,1782108173000,-248.94298782,0.000143,2]
[426005131,1782108173000,-150.0,0.000143,2]
[426005127,1782108173000,-500.0,0.000143,2]
[426005136,1782108173000,-300.0,0.00014574,2]
[426005152,1782108281000,-6883.95741568,0.00015,2]
[426005151,1782108281000,-300.0,0.0001457,2]
[426005149,1782108281000,-151.0,0.00014454,2]
[426005148,1782108281000,-151.0,0.00014454,2]
[426005150,1782108281000,-600.0,0.0001457,2]
[426005144,1782108281000,-150.0,0.00013565,2]
[426005146,1782108281000,-401.18356848,0.0001414,2]
[426005145,1782108281000,-150.0,0.00013698,2]
[426005143,1782108281000,-150.0,0.00013432,2]
[426005154,1782108281000,-316.0,0.00015,2]
[426005147,1782108281000,-319.0,0.00014141,2]
[426005153,1782108281000,-309.0,0.00015,2]
[426005155,1782108281000,-500.0,0.00015013,2]
[426005157,1782108281000,-600.0,0.00015066,2]
[426005156,1782108281000,-600.0,0.00015066,2]
[426005168,1782108281000,-500.0,0.00015444,2]
[426005165,1782108281000,-500.0,0.00015444,2]
[426005163,1782108281000,-151.53,0.00015215,2]
[426005161,1782108281000,-155.23442795,0.00015066,2]
[426005166,1782108281000,-500.0,0.00015444,2]
[426005164,1782108281000,-500.0,0.00015444,2]
[426005158,1782108281000,-603.30306652,0.00015066,2]
[426005159,1782108281000,-300.0,0.00015066,2]
[426005160,1782108281000,-300.0,0.00015066,2]
[426005162,1782108281000,-180.81,0.00015192,2]
[426005167,1782108281000,-329.73495799,0.00015444,2]
[426005178,1782108282000,-318.0,0.00015872,2]
[426005184,1782108282000,-179.3784342,0.00016033,2]
[426005181,1782108282000,-500.0,0.00016033,2]
[426005182,1782108282000,-500.0,0.00016033,2]
[426005183,1782108282000,-500.0,0.00016033,2]
[426005179,1782108282000,-317.0,0.0001595,2]
[426005180,1782108282000,-249.30655111,0.00016033,2]
[426005176,1782108282000,-502.02711072,0.00015633,2]
[426005172,1782108282000,-300.0,0.00015555,2]
[426005175,1782108282000,-500.0,0.00015633,2]
[426005171,1782108282000,-600.0,0.00015555,2]
[426005173,1782108282000,-5806.75,0.00015566,2]
[426005170,1782108282000,-11484.53891149,0.00015552,2]
[426005174,1782108282000,-300.0,0.00015632,2]
[426005169,1782108282000,-7645.36614939,0.00015552,2]
[426005186,1782108282000,-526.95282596,0.00016033,2]
[426005177,1782108282000,-500.0,0.00015633,2]
[426005185,1782108282000,-484.60303732,0.00016033,2]
[426005198,1782108282000,-354.28,0.00016116,2]
[426005187,1782108282000,-474.34782067,0.00016033,2]
[426005188,1782108282000,-500.0,0.00016033,2]
[426005206,1782108282000,-200.0,0.00016326,2]
[426005205,1782108282000,-315.0,0.00016183,2]
[426005203,1782108282000,-9999.99,0.00016116,2]
[426005204,1782108282000,-150.0,0.00016169,2]
[426005201,1782108282000,-8128.22,0.00016116,2]
[426005197,1782108282000,-150.99,0.00016116,2]
[426005199,1782108282000,-9999.99,0.00016116,2]
[426005202,1782108282000,-1494.24,0.00016116,2]
[426005196,1782108282000,-1229.0,0.00016034,2]
[426005200,1782108282000,-738.15,0.00016116,2]
[426005190,1782108282000,-6082.0,0.00016034,2]
[426005191,1782108282000,-216.0,0.00016034,2]
[426005192,1782108282000,-934.0,0.00016034,2]
[426005189,1782108282000,-3648.0,0.00016034,2]
[426005194,1782108282000,-1276.0,0.00016034,2]
[426005195,1782108282000,-1360.0,0.00016034,2]
[426005193,1782108282000,-383.0,0.00016034,2]
[426005216,1782108283000,-500.0,0.00016438,2]
[426005223,1782108283000,-500.0,0.00016438,2]
[426005220,1782108283000,-455.2910393,0.00016438,2]
[426005222,1782108283000,-500.0,0.00016438,2]
[426005221,1782108283000,-500.0,0.00016438,2]
[426005224,1782108283000,-500.0,0.00016438,2]
[426005219,1782108283000,-500.0,0.00016438,2]
[426005218,1782108283000,-500.0,0.00016438,2]
[426005207,1782108283000,-500.0,0.00016438,2]
[426005213,1782108283000,-500.0,0.00016438,2]
[426005215,1782108283000,-500.0,0.00016438,2]